Workbook

Sheet PRADŽIA
B1: APIE ŠĮ ŠABLONĄ
B2: Sekite žiniatinklio svetainės biudžeto sudarymas įrankis, jos naudą ir išlaidos, nauda šios svetainės biudžeto sudarymo priemonę.
B3: Įveskite įmonės pavadinimas ir data.
B4: Jei norite, kad būtų automatiškai apskaičiuojamos sumos ir vertinimo rodikliai, įveskite lentelėse išsamią informaciją.
B5: Pastaba.
B6: Papildomos instrukcijos pateikiamos darbalapio BIUDŽETO ĮRANKIS A stulpelyje. Šis tekstas buvo specialiai paslėptas. Norėdami pašalinti tekstą, pasirinkite A stulpelį, tada pasirinkite Naikinti. Norėdami nebeslėpti teksto, pasirinkite A stulpelį, tada pakeiskite šrifto spalvą.
B7: Norėdami sužinoti daugiau apie darbalapio lenteles, lentelėje paspauskite SHIFT, tada – F10, pasirinkite parinktį LENTELĖ, tada pasirinkite ALTERNATYVUS TEKSTAS.

Sheet BIUDŽETO ĮRANKIS
A1: Sukurkite žiniatinklio svetainės biudžetą šiame darbalapyje. Naudingos instrukcijos, kaip naudoti šį darbalapį, pateiktos šio stulpelio langeliuose. Paspauskite rodyklę žemyn, kad pradėtumėte.
A2: Langelyje dešinėje įveskite įmonės pavadinimas. | B2: Įmonės pavadinimas
A3: Šio darbalapio pavadinimas yra langelyje dešinėje. | B3: Žiniatinklio svetainės biudžeto sudarymas įrankis
A4: Įveskite data langelyje dešinėje. | B4: Data
A5: Patarimas pateikiamas langelyje dešinėje. | B5: Pilkuose langeliuose yra skaičiavimai, kurių negalima keisti.
A6: Įveskite informaciją lentelėje Vertinimas pradėdami nuo langelio dešinėje. Kitas nurodymas yra A10 langelyje. | B6: Įmonės duomenys | C6: Koeficientas
B7: Būtinas grąžos koeficientas | C7: 10%
B8: Mokesčio tarifas | C8: 30%
A10: Įveskite informaciją lentelėje Pradinė investicija pradėdami nuo langelio dešinėje. Kitas nurodymas yra A16 langelyje. | B10: Pradinė investicija į žiniatinklio svetainę | C10: METAI | D10: 1 | E10: 2 | F10: 3
B11: Aparatūra (pvz., serveriai) | C11: 25,000.00 EUR
B12: Programinė įranga (pvz., el. prekybos katalogo programinė įranga) | C12: 15,000.00 EUR
B13: Kūrimas (pvz., trečiųjų šalių svetainės dizainas ir kūrimas) | C13: 150,000.00 EUR
B14: Bendra pradinių investicijų suma | C14: =SUBTOTAL(109,PradinėInvesticija[METAI]) -> 190,000.00 EUR
A16: Įveskite informaciją lentelėje Nauda pradėdami nuo langelio dešinėje. Kitas nurodymas yra A24 langelyje. | B16: Nauda iš žiniatinklio svetainės | C16: METAI | D16: 1 | E16: 2 | F16: 3
B17: Tiesioginis pardavimas | D17: 15,000.00 EUR | E17: 50,000.00 EUR | F17: 75,000.00 EUR
B18: Dėl pagerinto reklamos / pardavėjų efektyvumo didėjantys pardavimai | D18: 25,000.00 EUR | E18: 25,000.00 EUR | F18: 25,000.00 EUR
B19: Dėl padidėjusios partnerių dalyvavimo didėjantys pardavimai | D19: 25,000.00 EUR | E19: 25,000.00 EUR | F19: 25,000.00 EUR
B20: Sumažintos kelionės išlaidos | D20: 25,000.00 EUR | E20: 25,000.00 EUR | F20: 25,000.00 EUR
B21: Sumažintos klientų aptarnavimo išlaidas | D21: 50,000.00 EUR | E21: 50,000.00 EUR | F21: 50,000.00 EUR
B22: Bendra nauda | D22: =SUBTOTAL(109,Nauda[1]) -> 140,000.00 EUR | E22: =SUBTOTAL(109,Nauda[2]) -> 175,000.00 EUR | F22: =SUBTOTAL(109,Nauda[3]) -> 200,000.00 EUR
A24: Įveskite informaciją lentelėje Išlaidos pradėdami nuo langelio dešinėje. Reikšmės yra automatiškai apskaičiuojama langeliuose, kuriuose yra formulės. Kitas nurodymas yra A32 langelyje. | B24: Išlaidos (išskyrus pradines kapitalo investicijas) | C24: METAI | D24: 1 | E24: 2 | F24: 3
B25: Pardavimo išlaidos | D25: 7,500.00 EUR | E25: 25,000.00 EUR | F25: 37,500.00 EUR
B26: Priežiūra | D26: 15,000.00 EUR | E26: 15,000.00 EUR | F26: 15,000.00 EUR
B27: Projektų valdymas, klientų palaikymas | D27: 35,000.00 EUR | E27: 35,000.00 EUR | F27: 35,000.00 EUR
B28: Reklama internete, registracija paieškos sistemoje | D28: 10,000.00 EUR | E28: 10,000.00 EUR | F28: 10,000.00 EUR
B29: Nusidėvėjimas kapitalinėse išlaidose (skaičiuojant naudojamas trejų metų laikotarpis) | D29: =PradinėInvesticija[[#Totals],[METAI]]/3 -> 63,333.33 EUR | E29: =PradinėInvesticija[[#Totals],[METAI]]/3 -> 63,333.33 EUR | F29: =PradinėInvesticija[[#Totals],[METAI]]/3 -> 63,333.33 EUR
B30: Bendros išlaidos | D30: =SUBTOTAL(109,Išlaidos[1]) -> 130,833.33 EUR | E30: =SUBTOTAL(109,Išlaidos[2]) -> 148,333.33 EUR | F30: =SUBTOTAL(109,Išlaidos[3]) -> 160,833.33 EUR
A32: Reikšmės automatiškai apskaičiuojamos lentelėje Sumos, pradedant langeliu dešinėje. Kitas nurodymas yra A40 langelyje. | B32: Iš viso | C32: METAI | D32: 1 | E32: 2 | F32: 3
B33: Grynoji nauda (išlaidos) | D33: =Nauda[[#Totals],[1]]-Išlaidos[[#Totals],[1]] -> 9,166.67 EUR | E33: =Nauda[[#Totals],[2]]-Išlaidos[[#Totals],[2]] -> 26,666.67 EUR | F33: =Nauda[[#Totals],[3]]-Išlaidos[[#Totals],[3]] -> 39,166.67 EUR
B34: Mokestis | D34: =D33*MokesčioTarifas -> 2,750.00 EUR | E34: =E33*MokesčioTarifas -> 8,000.00 EUR | F34: =F33*MokesčioTarifas -> 11,750.00 EUR
B35: Vertė po mokesčių | D35: =D33-D34 -> 6,416.67 EUR | E35: 18,666.67 EUR | F35: 27,416.67 EUR
B36: Įtrauktas nusidėvėjimas | D36: =D29 -> 63,333.33 EUR | E36: =E29 -> 63,333.33 EUR | F36: =F29 -> 63,333.33 EUR
B37: Pinigų srautas | C37: =-PradinėInvesticija[[#Totals],[METAI]] -> -190,000.00 EUR | D37: =D35+D36 -> 69,750.00 EUR | E37: 82,000.00 EUR | F37: 90,750.00 EUR
B38: Kaupiamasis pinigų srautas | C38: =C37 -> -190,000.00 EUR | D38: =C38+D37 -> -120,250.00 EUR | E38: -38,250.00 EUR | F38: 52,500.00 EUR
A40: Vertinimo metrika automatiškai apskaičiuojama lentelėje Metrika, pradedant langeliu dešinėje. | B40: Vertinimo metrika | C40: Reikšmės
B41: Dabartinė grynoji vertė (NPV) | C41: =C37+(NPV(ROR,D37:F37)) -> 9,359.50 EUR
B42: Vidinis grąžos koeficientas (IRR) | C42: =IRR(C37:F37) -> 12.66%
B43: Grąžinimo laikotarpis (metais) | C43: =IF(F38<=0,"Viršija 3 metus",IF(E38<=0,(F37-F38)/F37+2,IF(D38<=0,(E37-E38)/E37+1,IF(C38<=0,(D37-D38)/D37,"Netaikoma")))) -> 2.42
